[Event "Titled Tuesday Blitz May 03 Early 2022"]
[White "Gurevich, Dmitry"]
[Black "Perez Gormaz, Matias"]
[WhiteFideId "2000407"]
[BlackFideId "3406342"]
[WhiteElo "2506"]
[BlackElo "2322"]
[Result "0-1"]
[Round "10"]
[TimeControl "180+1"]
[Date "2022.05.03"]
[WhiteClock "0:00:05"]
[BlackClock "0:00:03"]

1. d4 {[%clk 0:03:00]}  d5 {[%clk 0:03:00]} 2. c4 {[%clk 0:03:00]}  e6 {[%clk 0:03:00]} 3. Nc3 {[%clk 0:03:00]}  a6 {[%clk 0:03:01]} 4. c5 {[%clk 0:02:59]}  b6 {[%clk 0:03:01]} 5. cxb6 {[%clk 0:02:58]}  c5 {[%clk 0:03:01]} 6. dxc5 {[%clk 0:02:42]}  Bxc5 {[%clk 0:03:00]} 7. e3 {[%clk 0:02:40]}  Bxb6 {[%clk 0:02:54]} 8. Nf3 {[%clk 0:02:38]}  Nf6 {[%clk 0:02:54]} 9. Be2 {[%clk 0:02:31]}  O-O {[%clk 0:02:55]} 10. O-O {[%clk 0:02:31]}  Bb7 {[%clk 0:02:56]} 11. b3 {[%clk 0:02:31]}  Nbd7 {[%clk 0:02:56]} 12. Bb2 {[%clk 0:02:31]}  Qe7 {[%clk 0:02:49]} 13. Na4 {[%clk 0:02:30]}  Bc7 {[%clk 0:02:48]} 14. Rc1 {[%clk 0:02:28]}  Bd6 {[%clk 0:02:46]} 15. Nd4 {[%clk 0:02:22]}  Rfc8 {[%clk 0:02:42]} 16. h3 {[%clk 0:02:09]}  Ne4 {[%clk 0:02:38]} 17. Bd3 {[%clk 0:02:00]}  Ne5 {[%clk 0:02:11]} 18. Bxe4 {[%clk 0:01:57]}  dxe4 {[%clk 0:02:11]} 19. Rxc8+ {[%clk 0:01:53]}  Rxc8 {[%clk 0:02:09]} 20. Qe2 {[%clk 0:01:50]}  Qg5 {[%clk 0:02:02]} 21. Kh1 {[%clk 0:01:46]}  Nf3 {[%clk 0:01:44]} 22. Nb6 {[%clk 0:01:26]}  Qe5 {[%clk 0:00:45]} 23. g3 {[%clk 0:01:23]}  Qh5 {[%clk 0:00:44]} 24. Kg2 {[%clk 0:01:16]}  Rd8 {[%clk 0:00:37]} 25. Nc4 {[%clk 0:01:13]}  Bb8 {[%clk 0:00:36]} 26. Rh1 {[%clk 0:00:56]}  Rxd4 {[%clk 0:00:22]} 27. Bxd4 {[%clk 0:00:54]}  Nh4+ {[%clk 0:00:11]} 28. Kf1 {[%clk 0:00:53]}  Nf3 {[%clk 0:00:11]} 29. Nd2 {[%clk 0:00:49]}  Qa5 {[%clk 0:00:06]} 30. Nxf3 {[%clk 0:00:43]}  exf3 {[%clk 0:00:07]} 31. Qc2 {[%clk 0:00:41]}  f6 {[%clk 0:00:06]} 32. Kg1 {[%clk 0:00:39]}  h5 {[%clk 0:00:06]} 33. h4 {[%clk 0:00:37]}  Kf7 {[%clk 0:00:03]} 34. Kh2 {[%clk 0:00:37]}  Bd5 {[%clk 0:00:03]} 35. Rc1 {[%clk 0:00:35]}  Qd8 {[%clk 0:00:01]} 36. Qc8 {[%clk 0:00:33]}  Qd6 {[%clk 0:00:01]} 37. Qh8 {[%clk 0:00:29]}  Kg6 {[%clk 0:00:01]} 38. Rc8 {[%clk 0:00:26]}  Qb4 {[%clk 0:00:01]} 39. Rg8 {[%clk 0:00:23]}  Kf5 {[%clk 0:00:01]} 40. Qxh5+ {[%clk 0:00:22]}  Ke4 {[%clk 0:00:02]} 41. Qg6+ {[%clk 0:00:21]}  f5 {[%clk 0:00:02]} 42. Rxb8 {[%clk 0:00:16]}  Qe1 {[%clk 0:00:02]} 43. h5 {[%clk 0:00:04]}  Qxf2+ {[%clk 0:00:02]} 44. Kh3 {[%clk 0:00:05]}  Qg2+ {[%clk 0:00:02]} 45. Kh4 {[%clk 0:00:05]}  Qh2+ {[%clk 0:00:03]} 46. Kg5 {[%clk 0:00:05]}  Qxg3# {[%clk 0:00:03]} 0-1


[Site "https://www.chess.com"]

[Event "Titled Tuesday Blitz May 03 Early 2022"]
[White "Hamley, Ryan"]
[Black "Vlassov, Nikolai"]
[WhiteFideId "30959497"]
[BlackFideId "4103360"]
[WhiteElo "2508"]
[BlackElo "2407"]
[Result "0-1"]
[Round "10"]
[TimeControl "180+1"]
[Date "2022.05.03"]
[WhiteClock "0:00:24"]
[BlackClock "0:00:54"]

1. e4 {[%clk 0:03:00]}  c5 {[%clk 0:02:58]} 2. Nf3 {[%clk 0:03:00]}  d6 {[%clk 0:02:58]} 3. d4 {[%clk 0:03:00]}  cxd4 {[%clk 0:02:58]} 4. Nxd4 {[%clk 0:03:01]}  Nf6 {[%clk 0:02:59]} 5. Nc3 {[%clk 0:03:02]}  g6 {[%clk 0:02:59]} 6. Be3 {[%clk 0:03:01]}  Bg7 {[%clk 0:02:59]} 7. f3 {[%clk 0:03:02]}  a6 {[%clk 0:02:58]} 8. a4 {[%clk 0:02:56]}  O-O {[%clk 0:02:50]} 9. Qd2 {[%clk 0:02:56]}  Nc6 {[%clk 0:02:49]} 10. Be2 {[%clk 0:02:54]}  d5 {[%clk 0:02:42]} 11. Nxc6 {[%clk 0:02:42]}  bxc6 {[%clk 0:02:41]} 12. e5 {[%clk 0:02:43]}  Nd7 {[%clk 0:02:41]} 13. f4 {[%clk 0:02:44]}  Rb8 {[%clk 0:02:33]} 14. Rb1 {[%clk 0:02:21]}  f6 {[%clk 0:02:33]} 15. e6 {[%clk 0:02:04]}  Nb6 {[%clk 0:02:28]} 16. f5 {[%clk 0:02:02]}  gxf5 {[%clk 0:02:27]} 17. O-O {[%clk 0:02:02]}  Bxe6 {[%clk 0:02:27]} 18. Bxa6 {[%clk 0:01:48]}  Bd7 {[%clk 0:02:17]} 19. a5 {[%clk 0:01:40]}  Nc8 {[%clk 0:02:17]} 20. b4 {[%clk 0:01:38]}  e5 {[%clk 0:02:16]} 21. Bc5 {[%clk 0:01:34]}  Rf7 {[%clk 0:02:15]} 22. b5 {[%clk 0:01:34]}  Qxa5 {[%clk 0:02:08]} 23. Ra1 {[%clk 0:01:21]}  Qc7 {[%clk 0:02:07]} 24. bxc6 {[%clk 0:01:17]}  Be6 {[%clk 0:01:48]} 25. Bb7 {[%clk 0:01:09]}  Rxb7 {[%clk 0:01:47]} 26. cxb7 {[%clk 0:01:07]}  Qxc5+ {[%clk 0:01:47]} 27. Kh1 {[%clk 0:01:07]}  Rxb7 {[%clk 0:01:47]} 28. Ra8 {[%clk 0:01:06]}  Kf7 {[%clk 0:01:44]} 29. Ne2 {[%clk 0:00:51]}  f4 {[%clk 0:01:42]} 30. Ng1 {[%clk 0:00:50]}  Rc7 {[%clk 0:01:34]} 31. Qe2 {[%clk 0:00:48]}  Bf5 {[%clk 0:01:29]} 32. Nf3 {[%clk 0:00:44]}  Nd6 {[%clk 0:01:23]} 33. Nh4 {[%clk 0:00:40]}  Qxc2 {[%clk 0:01:16]} 34. Qe1 {[%clk 0:00:39]}  Be4 {[%clk 0:01:13]} 35. Ra6 {[%clk 0:00:31]}  Nc4 {[%clk 0:01:11]} 36. Qb4 {[%clk 0:00:25]}  Ne3 {[%clk 0:01:06]} 37. Rg1 {[%clk 0:00:26]}  Nxg2 {[%clk 0:00:57]} 38. Nxg2 {[%clk 0:00:24]}  Qxg2+ {[%clk 0:00:54]} 0-1


[Site "https://www.chess.com"]

[Event "Titled Tuesday Blitz May 03 Early 2022"]
[White "Dronavalli, Harika"]
[Black "Pham, Tran Gia Phuc"]
[WhiteFideId "5015197"]
[BlackFideId "12415669"]
[WhiteElo "2382"]
[BlackElo "1789"]
[Result "1-0"]
[Round "10"]
[TimeControl "180+1"]
[Date "2022.05.03"]
[WhiteClock "0:01:25"]
[BlackClock "0:00:35"]

1. e4 {[%clk 0:03:00]}  c5 {[%clk 0:02:59]} 2. c3 {[%clk 0:03:00]}  d5 {[%clk 0:02:58]} 3. exd5 {[%clk 0:03:00]}  Qxd5 {[%clk 0:02:59]} 4. d4 {[%clk 0:03:00]}  Nf6 {[%clk 0:02:56]} 5. Nf3 {[%clk 0:03:00]}  Nc6 {[%clk 0:02:56]} 6. Na3 {[%clk 0:02:57]}  a6 {[%clk 0:02:46]} 7. Nc4 {[%clk 0:02:52]}  Bg4 {[%clk 0:02:15]} 8. Be2 {[%clk 0:02:28]}  Bxf3 {[%clk 0:02:07]} 9. gxf3 {[%clk 0:02:28]}  Rd8 {[%clk 0:02:01]} 10. dxc5 {[%clk 0:02:17]}  Qxc5 {[%clk 0:01:56]} 11. Qc2 {[%clk 0:02:16]}  b5 {[%clk 0:01:54]} 12. Be3 {[%clk 0:02:13]}  Qh5 {[%clk 0:01:54]} 13. Nd2 {[%clk 0:02:11]}  e6 {[%clk 0:01:53]} 14. a4 {[%clk 0:02:04]}  Bd6 {[%clk 0:01:45]} 15. axb5 {[%clk 0:02:02]}  axb5 {[%clk 0:01:45]} 16. f4 {[%clk 0:01:56]}  Ng4 {[%clk 0:01:41]} 17. Qe4 {[%clk 0:01:48]}  Ne7 {[%clk 0:01:36]} 18. h3 {[%clk 0:01:44]}  Qh4 {[%clk 0:00:44]} 19. hxg4 {[%clk 0:01:41]}  Qf6 {[%clk 0:00:40]} 20. g5 {[%clk 0:01:40]}  Qf5 {[%clk 0:00:40]} 21. Qxf5 {[%clk 0:01:40]}  Nxf5 {[%clk 0:00:40]} 22. Bxb5+ {[%clk 0:01:40]}  Kf8 {[%clk 0:00:40]} 23. Ke2 {[%clk 0:01:26]}  Rb8 {[%clk 0:00:35]} 24. c4 {[%clk 0:01:25]} 1-0


[Site "https://www.chess.com"]

[Event "Titled Tuesday Blitz May 03 Early 2022"]
[White "Harshavardhan G B"]
[Black "Samadov, Read"]
[WhiteFideId "25059009"]
[BlackFideId "13417444"]
[WhiteElo "1831"]
[BlackElo "2084"]
[Result "1-0"]
[Round "10"]
[TimeControl "180+1"]
[Date "2022.05.03"]
[WhiteClock "0:00:25"]
[BlackClock "0:00:02"]

1. d4 {[%clk 0:03:00]}  Nf6 {[%clk 0:02:58]} 2. c4 {[%clk 0:02:58]}  b6 {[%clk 0:02:58]} 3. f3 {[%clk 0:02:56]}  Bb7 {[%clk 0:02:57]} 4. e4 {[%clk 0:02:56]}  d6 {[%clk 0:02:57]} 5. Nc3 {[%clk 0:02:55]}  Nbd7 {[%clk 0:02:56]} 6. Be3 {[%clk 0:02:54]}  e5 {[%clk 0:02:56]} 7. d5 {[%clk 0:02:54]}  g6 {[%clk 0:02:56]} 8. Bd3 {[%clk 0:02:53]}  Bg7 {[%clk 0:02:56]} 9. Nge2 {[%clk 0:02:53]}  O-O {[%clk 0:02:56]} 10. Qd2 {[%clk 0:02:53]}  Nh5 {[%clk 0:02:46]} 11. g4 {[%clk 0:02:51]}  Nf4 {[%clk 0:02:34]} 12. Nxf4 {[%clk 0:02:50]}  exf4 {[%clk 0:02:35]} 13. Bxf4 {[%clk 0:02:51]}  Ne5 {[%clk 0:02:21]} 14. Be2 {[%clk 0:02:51]}  f5 {[%clk 0:02:15]} 15. gxf5 {[%clk 0:02:50]}  gxf5 {[%clk 0:02:15]} 16. O-O-O {[%clk 0:02:50]}  Kh8 {[%clk 0:02:08]} 17. Rhg1 {[%clk 0:02:49]}  fxe4 {[%clk 0:02:04]} 18. Nxe4 {[%clk 0:02:48]}  Ng6 {[%clk 0:02:00]} 19. Bh6 {[%clk 0:02:46]}  Qe7 {[%clk 0:01:50]} 20. Bxg7+ {[%clk 0:02:44]}  Qxg7 {[%clk 0:01:50]} 21. Ng5 {[%clk 0:02:44]}  Bc8 {[%clk 0:01:33]} 22. Bd3 {[%clk 0:02:41]}  Bf5 {[%clk 0:01:29]} 23. Ne6 {[%clk 0:02:25]}  Bxe6 {[%clk 0:01:28]} 24. dxe6 {[%clk 0:02:26]}  Rae8 {[%clk 0:01:27]} 25. Bxg6 {[%clk 0:02:24]}  hxg6 {[%clk 0:01:26]} 26. Qd5 {[%clk 0:02:23]}  Rf5 {[%clk 0:01:25]} 27. Qe4 {[%clk 0:02:16]}  Qh6+ {[%clk 0:01:23]} 28. Kb1 {[%clk 0:02:15]}  Rf6 {[%clk 0:01:09]} 29. e7 {[%clk 0:02:08]}  Kg7 {[%clk 0:01:08]} 30. Rde1 {[%clk 0:02:07]}  Qxh2 {[%clk 0:00:55]} 31. Qd4 {[%clk 0:01:59]}  Qf4 {[%clk 0:00:51]} 32. Qd5 {[%clk 0:01:50]}  Qxf3 {[%clk 0:00:46]} 33. Qd2 {[%clk 0:01:36]}  Qf4 {[%clk 0:00:43]} 34. Qc3 {[%clk 0:01:28]}  Kf7 {[%clk 0:00:38]} 35. Rh1 {[%clk 0:01:21]}  Qf5+ {[%clk 0:00:32]} 36. Ka1 {[%clk 0:01:20]}  g5 {[%clk 0:00:31]} 37. Qe3 {[%clk 0:01:19]}  Kg6 {[%clk 0:00:21]} 38. Qg3 {[%clk 0:00:58]}  Re6 {[%clk 0:00:15]} 39. Ref1 {[%clk 0:00:58]}  Qe4 {[%clk 0:00:07]} 40. Qh3 {[%clk 0:00:56]}  Kg7 {[%clk 0:00:03]} 41. a3 {[%clk 0:00:42]}  g4 {[%clk 0:00:02]} 42. Qh4 {[%clk 0:00:40]}  Qg6 {[%clk 0:00:03]} 43. Rf4 {[%clk 0:00:33]}  Re4 {[%clk 0:00:02]} 44. Rxe4 {[%clk 0:00:24]}  Qxe4 {[%clk 0:00:03]} 45. Rg1 {[%clk 0:00:25]}  Rxe7 {[%clk 0:00:02]} 46. Rxg4+ {[%clk 0:00:25]}  Kf7 {[%clk 0:00:02]} 47. Rxe4 {[%clk 0:00:25]} 1-0


[Site "https://www.chess.com"]

[Event "Titled Tuesday Blitz May 03 Early 2022"]
[White "Hovhannisyan, Robert"]
[Black "Sychev, Klementy"]
[WhiteFideId "13302507"]
[BlackFideId "4114060"]
[WhiteElo "2570"]
[BlackElo "2564"]
[Result "1/2-1/2"]
[Round "10"]
[TimeControl "180+1"]
[Date "2022.05.03"]
[WhiteClock "0:00:05"]
[BlackClock "0:00:03"]

1. e4 {[%clk 0:03:00]}  c5 {[%clk 0:02:54]} 2. Nf3 {[%clk 0:03:00]}  e6 {[%clk 0:02:55]} 3. d4 {[%clk 0:03:00]}  cxd4 {[%clk 0:02:55]} 4. Nxd4 {[%clk 0:03:01]}  Nf6 {[%clk 0:02:53]} 5. Nc3 {[%clk 0:03:01]}  Nc6 {[%clk 0:02:53]} 6. Ndb5 {[%clk 0:02:58]}  Bc5 {[%clk 0:02:53]} 7. Bf4 {[%clk 0:02:56]}  O-O {[%clk 0:02:53]} 8. Bc7 {[%clk 0:02:56]}  Qe7 {[%clk 0:02:53]} 9. Bd6 {[%clk 0:02:56]}  Bxd6 {[%clk 0:02:54]} 10. Qxd6 {[%clk 0:02:57]}  Qd8 {[%clk 0:02:54]} 11. O-O-O {[%clk 0:02:40]}  a6 {[%clk 0:02:54]} 12. Nd4 {[%clk 0:02:37]}  Ne7 {[%clk 0:02:54]} 13. h4 {[%clk 0:02:29]}  b5 {[%clk 0:02:53]} 14. h5 {[%clk 0:02:11]}  Ne8 {[%clk 0:02:53]} 15. Qg3 {[%clk 0:02:08]}  h6 {[%clk 0:02:50]} 16. Bd3 {[%clk 0:02:04]}  Bb7 {[%clk 0:02:47]} 17. f4 {[%clk 0:02:02]}  Rc8 {[%clk 0:02:47]} 18. Kb1 {[%clk 0:01:52]}  Qb6 {[%clk 0:02:20]} 19. Nce2 {[%clk 0:01:43]}  Nf6 {[%clk 0:02:08]} 20. Qf3 {[%clk 0:01:42]}  d6 {[%clk 0:02:04]} 21. g4 {[%clk 0:01:39]}  e5 {[%clk 0:01:53]} 22. g5 {[%clk 0:01:31]}  Nh7 {[%clk 0:01:49]} 23. gxh6 {[%clk 0:01:17]}  exd4 {[%clk 0:01:47]} 24. Rhg1 {[%clk 0:01:11]}  g6 {[%clk 0:01:46]} 25. f5 {[%clk 0:01:10]}  Kh8 {[%clk 0:01:41]} 26. hxg6 {[%clk 0:01:02]}  fxg6 {[%clk 0:01:40]} 27. Nf4 {[%clk 0:00:52]}  g5 {[%clk 0:01:26]} 28. Ne6 {[%clk 0:00:34]}  Rxf5 {[%clk 0:01:26]} 29. Qh5 {[%clk 0:00:28]}  Re5 {[%clk 0:00:45]} 30. Qf7 {[%clk 0:00:20]}  Rg8 {[%clk 0:00:46]} 31. Rdf1 {[%clk 0:00:14]}  Ng6 {[%clk 0:00:33]} 32. Rf5 {[%clk 0:00:07]}  Bc8 {[%clk 0:00:29]} 33. Nxg5 {[%clk 0:00:06]}  Nxg5 {[%clk 0:00:17]} 34. Rfxg5 {[%clk 0:00:07]}  Rxg5 {[%clk 0:00:06]} 35. Rxg5 {[%clk 0:00:08]}  Qb7 {[%clk 0:00:03]} 36. Qf6+ {[%clk 0:00:04]}  Kh7 {[%clk 0:00:03]} 37. b3 {[%clk 0:00:02]}  Qe7 {[%clk 0:00:02]} 38. Qxe7+ {[%clk 0:00:02]}  Nxe7 {[%clk 0:00:02]} 39. e5+ {[%clk 0:00:03]}  Kxh6 {[%clk 0:00:02]} 40. Rxg8 {[%clk 0:00:01]}  Nxg8 {[%clk 0:00:03]} 41. exd6 {[%clk 0:00:02]}  Bd7 {[%clk 0:00:04]} 42. a4 {[%clk 0:00:02]}  Nf6 {[%clk 0:00:04]} 43. axb5 {[%clk 0:00:02]}  axb5 {[%clk 0:00:05]} 44. b4 {[%clk 0:00:02]}  Ne8 {[%clk 0:00:05]} 45. Kb2 {[%clk 0:00:02]}  Nxd6 {[%clk 0:00:05]} 46. c3 {[%clk 0:00:03]}  dxc3+ {[%clk 0:00:05]} 47. Kxc3 {[%clk 0:00:04]}  Kg5 {[%clk 0:00:05]} 48. Kd4 {[%clk 0:00:04]}  Kf6 {[%clk 0:00:05]} 49. Kc5 {[%clk 0:00:05]}  Ke5 {[%clk 0:00:05]} 50. Bf1 {[%clk 0:00:04]}  Be8 {[%clk 0:00:05]} 51. Be2 {[%clk 0:00:04]}  Ne4+ {[%clk 0:00:06]} 52. Kb6 {[%clk 0:00:04]}  Nc3 {[%clk 0:00:06]} 53. Bf1 {[%clk 0:00:04]}  Kd4 {[%clk 0:00:07]} 54. Ka5 {[%clk 0:00:02]}  Bd7 {[%clk 0:00:07]} 55. Kb6 {[%clk 0:00:01]}  Ke3 {[%clk 0:00:07]} 56. Ka5 {[%clk 0:00:02]}  Kd2 {[%clk 0:00:07]} 57. Kb6 {[%clk 0:00:02]}  Kc2 {[%clk 0:00:07]} 58. Kc5 {[%clk 0:00:02]}  Kb3 {[%clk 0:00:07]} 59. Bd3 {[%clk 0:00:03]}  Na4+ {[%clk 0:00:06]} 60. Kd6 {[%clk 0:00:02]}  Be8 {[%clk 0:00:06]} 61. Ke7 {[%clk 0:00:03]}  Kc3 {[%clk 0:00:05]} 62. Bf1 {[%clk 0:00:03]}  Bc6 {[%clk 0:00:05]} 63. Kd6 {[%clk 0:00:03]}  Be8 {[%clk 0:00:04]} 64. Ke7 {[%clk 0:00:04]}  Bc6 {[%clk 0:00:02]} 65. Kd6 {[%clk 0:00:04]}  Bf3 {[%clk 0:00:02]} 66. Bxb5 {[%clk 0:00:04]}  Nb2 {[%clk 0:00:03]} 67. Bc6 {[%clk 0:00:03]}  Nc4+ {[%clk 0:00:01]} 68. Kc7 {[%clk 0:00:03]}  Be2 {[%clk 0:00:01]} 69. b5 {[%clk 0:00:04]}  Kb4 {[%clk 0:00:02]} 70. b6 {[%clk 0:00:04]}  Nxb6 {[%clk 0:00:03]} 71. Kxb6 {[%clk 0:00:05]} 1/2-1/2


[Site "https://www.chess.com"]

[Event "Titled Tuesday Blitz May 03 Early 2022"]
[White "Iljin, Timofey"]
[Black "Vokarev, Sergey"]
[WhiteFideId "14110180"]
[BlackFideId "4119711"]
[WhiteElo "2396"]
[BlackElo "2343"]
[Result "1/2-1/2"]
[Round "10"]
[TimeControl "180+1"]
[Date "2022.05.03"]
[WhiteClock "0:00:15"]
[BlackClock "0:00:05"]

1. d4 {[%clk 0:03:00]}  d5 {[%clk 0:02:59]} 2. c4 {[%clk 0:03:01]}  dxc4 {[%clk 0:03:00]} 3. e4 {[%clk 0:03:01]}  b5 {[%clk 0:03:00]} 4. a4 {[%clk 0:02:59]}  c6 {[%clk 0:02:57]} 5. axb5 {[%clk 0:02:57]}  cxb5 {[%clk 0:02:58]} 6. Nc3 {[%clk 0:02:58]}  a6 {[%clk 0:02:57]} 7. Nxb5 {[%clk 0:02:59]}  axb5 {[%clk 0:02:58]} 8. Rxa8 {[%clk 0:03:00]}  Bb7 {[%clk 0:02:57]} 9. Ra1 {[%clk 0:02:57]}  e6 {[%clk 0:02:55]} 10. Ne2 {[%clk 0:02:58]}  Bxe4 {[%clk 0:02:52]} 11. Nc3 {[%clk 0:02:59]}  Bb4 {[%clk 0:02:37]} 12. Bd2 {[%clk 0:02:45]}  Bxc3 {[%clk 0:02:21]} 13. bxc3 {[%clk 0:02:38]}  Nf6 {[%clk 0:02:18]} 14. f3 {[%clk 0:02:33]}  Bc6 {[%clk 0:02:12]} 15. Be2 {[%clk 0:02:33]}  O-O {[%clk 0:02:11]} 16. O-O {[%clk 0:02:34]}  Nbd7 {[%clk 0:02:11]} 17. Bg5 {[%clk 0:02:30]}  h6 {[%clk 0:02:10]} 18. Bh4 {[%clk 0:02:31]}  Qb6 {[%clk 0:02:05]} 19. Bf2 {[%clk 0:02:27]}  Nd5 {[%clk 0:02:04]} 20. Qd2 {[%clk 0:02:27]}  Qb7 {[%clk 0:01:55]} 21. Rfb1 {[%clk 0:02:26]}  N7b6 {[%clk 0:01:54]} 22. Bd1 {[%clk 0:02:22]}  Ra8 {[%clk 0:01:51]} 23. Bc2 {[%clk 0:02:21]}  Ne7 {[%clk 0:01:40]} 24. Rxa8+ {[%clk 0:02:01]}  Qxa8 {[%clk 0:01:37]} 25. Qc1 {[%clk 0:02:02]}  Nbd5 {[%clk 0:01:33]} 26. Ra1 {[%clk 0:02:00]}  Qb8 {[%clk 0:01:32]} 27. Qa3 {[%clk 0:01:56]}  b4 {[%clk 0:01:16]} 28. cxb4 {[%clk 0:01:55]}  Qxb4 {[%clk 0:01:16]} 29. Be4 {[%clk 0:01:49]}  Qxa3 {[%clk 0:01:12]} 30. Rxa3 {[%clk 0:01:50]}  f5 {[%clk 0:01:12]} 31. Bb1 {[%clk 0:01:44]}  Nf4 {[%clk 0:01:08]} 32. Ba2 {[%clk 0:01:33]}  Bd5 {[%clk 0:01:06]} 33. Ra7 {[%clk 0:01:26]}  c3 {[%clk 0:01:05]} 34. Rxe7 {[%clk 0:01:04]}  Bxa2 {[%clk 0:01:04]} 35. Rc7 {[%clk 0:01:05]}  Bb3 {[%clk 0:01:03]} 36. Be1 {[%clk 0:01:00]}  c2 {[%clk 0:01:02]} 37. Bd2 {[%clk 0:00:59]}  Ne2+ {[%clk 0:01:01]} 38. Kf2 {[%clk 0:00:59]}  Nxd4 {[%clk 0:01:01]} 39. Ke3 {[%clk 0:00:59]}  e5 {[%clk 0:00:40]} 40. f4 {[%clk 0:00:59]}  Ne6 {[%clk 0:00:35]} 41. Rc8+ {[%clk 0:00:58]}  Kf7 {[%clk 0:00:34]} 42. fxe5 {[%clk 0:00:59]}  g5 {[%clk 0:00:34]} 43. g3 {[%clk 0:00:58]}  f4+ {[%clk 0:00:32]} 44. Ke4 {[%clk 0:00:59]}  fxg3 {[%clk 0:00:25]} 45. hxg3 {[%clk 0:01:00]}  h5 {[%clk 0:00:25]} 46. Be3 {[%clk 0:00:50]}  Kg6 {[%clk 0:00:22]} 47. Rc3 {[%clk 0:00:42]}  Ba2 {[%clk 0:00:21]} 48. Kf3 {[%clk 0:00:38]}  Bb1 {[%clk 0:00:19]} 49. Rc6 {[%clk 0:00:33]}  Kf5 {[%clk 0:00:19]} 50. Kf2 {[%clk 0:00:24]}  Kxe5 {[%clk 0:00:19]} 51. Rc8 {[%clk 0:00:23]}  Kf5 {[%clk 0:00:19]} 52. Rg8 {[%clk 0:00:21]}  h4 {[%clk 0:00:19]} 53. gxh4 {[%clk 0:00:20]}  gxh4 {[%clk 0:00:19]} 54. Rh8 {[%clk 0:00:21]}  Kg4 {[%clk 0:00:18]} 55. Kg2 {[%clk 0:00:22]}  Nf4+ {[%clk 0:00:17]} 56. Kh2 {[%clk 0:00:22]}  Nd3 {[%clk 0:00:16]} 57. Rc8 {[%clk 0:00:21]}  Kf3 {[%clk 0:00:16]} 58. Bg5 {[%clk 0:00:18]}  Ke2 {[%clk 0:00:15]} 59. Re8+ {[%clk 0:00:12]}  Kd1 {[%clk 0:00:15]} 60. Rh8 {[%clk 0:00:09]}  c1=Q {[%clk 0:00:11]} 61. Bxc1 {[%clk 0:00:08]}  Kxc1 {[%clk 0:00:11]} 62. Rxh4 {[%clk 0:00:09]}  Kd2 {[%clk 0:00:10]} 63. Rd4 {[%clk 0:00:09]}  Bc2 {[%clk 0:00:11]} 64. Rd8 {[%clk 0:00:10]}  Ke3 {[%clk 0:00:10]} 65. Kg3 {[%clk 0:00:11]}  Bd1 {[%clk 0:00:10]} 66. Re8+ {[%clk 0:00:11]}  Kd2 {[%clk 0:00:10]} 67. Rd8 {[%clk 0:00:11]}  Bc2 {[%clk 0:00:10]} 68. Re8 {[%clk 0:00:12]}  Kc3 {[%clk 0:00:10]} 69. Rd8 {[%clk 0:00:13]}  Nb4 {[%clk 0:00:10]} 70. Rc8+ {[%clk 0:00:13]}  Kd2 {[%clk 0:00:07]} 71. Kf2 {[%clk 0:00:14]}  Nd3+ {[%clk 0:00:07]} 72. Kf3 {[%clk 0:00:14]}  Ne5+ {[%clk 0:00:07]} 73. Kf4 {[%clk 0:00:14]}  Nd3+ {[%clk 0:00:08]} 74. Ke4 {[%clk 0:00:13]}  Nb4+ {[%clk 0:00:07]} 75. Kd4 {[%clk 0:00:13]}  Nd3 {[%clk 0:00:07]} 76. Rh8 {[%clk 0:00:13]}  Nc1 {[%clk 0:00:06]} 77. Rh2+ {[%clk 0:00:13]}  Ne2+ {[%clk 0:00:06]} 78. Kc4 {[%clk 0:00:14]}  Ke3 {[%clk 0:00:06]} 79. Rh3+ {[%clk 0:00:14]}  Kd2 {[%clk 0:00:06]} 80. Rh2 {[%clk 0:00:14]}  Bd3+ {[%clk 0:00:06]} 81. Kd5 {[%clk 0:00:14]}  Ke3 {[%clk 0:00:06]} 82. Ke5 {[%clk 0:00:14]}  Kd2 {[%clk 0:00:06]} 83. Rg2 {[%clk 0:00:14]}  Ke3 {[%clk 0:00:06]} 84. Rh2 {[%clk 0:00:15]}  Kf3 {[%clk 0:00:06]} 85. Rh3+ {[%clk 0:00:14]}  Ng3 {[%clk 0:00:06]} 86. Kd4 {[%clk 0:00:14]}  Bf5 {[%clk 0:00:06]} 87. Rh8 {[%clk 0:00:14]}  Ne2+ {[%clk 0:00:06]} 88. Ke5 {[%clk 0:00:14]}  Bd3 {[%clk 0:00:07]} 89. Rf8+ {[%clk 0:00:15]}  Ke3 {[%clk 0:00:05]} 90. Rb8 {[%clk 0:00:16]}  Kd2 {[%clk 0:00:05]} 91. Rb2+ {[%clk 0:00:16]}  Ke3 {[%clk 0:00:05]} 92. Ra2 {[%clk 0:00:17]}  Kf3 {[%clk 0:00:05]} 93. Ra3 {[%clk 0:00:17]}  Ke3 {[%clk 0:00:05]} 94. Kd5 {[%clk 0:00:18]}  Nf4+ {[%clk 0:00:05]} 95. Kc5 {[%clk 0:00:17]}  Ne2 {[%clk 0:00:06]} 96. Kb4 {[%clk 0:00:17]}  Nf4 {[%clk 0:00:06]} 97. Ra8 {[%clk 0:00:18]}  Ke4 {[%clk 0:00:06]} 98. Re8+ {[%clk 0:00:18]}  Kf3 {[%clk 0:00:06]} 99. Kc3 {[%clk 0:00:19]}  Be2 {[%clk 0:00:06]} 100. Kd2 {[%clk 0:00:20]}  Bd3 {[%clk 0:00:07]} 101. Rf8 {[%clk 0:00:20]}  Be2 {[%clk 0:00:07]} 102. Kc3 {[%clk 0:00:20]}  Bd3 {[%clk 0:00:07]} 103. Kd4 {[%clk 0:00:21]}  Be2 {[%clk 0:00:08]} 104. Re8 {[%clk 0:00:22]}  Kg3 {[%clk 0:00:05]} 105. Re3+ {[%clk 0:00:23]}  Bf3 {[%clk 0:00:05]} 106. Ke5 {[%clk 0:00:15]}  Ng2 {[%clk 0:00:05]} 107. Ra3 {[%clk 0:00:15]}  Kf2 {[%clk 0:00:05]} 108. Kf5 {[%clk 0:00:14]}  Be2 {[%clk 0:00:05]} 109. Kg5 {[%clk 0:00:15]}  Ne3 {[%clk 0:00:05]} 110. Ra2 {[%clk 0:00:15]}  Nd1 {[%clk 0:00:05]} 111. Kf4 {[%clk 0:00:16]}  Ne3 {[%clk 0:00:05]} 112. Ra8 {[%clk 0:00:15]} 1/2-1/2


[Site "https://www.chess.com"]